bitfinex/quotes_ETHUSD_20250623
["timestamp","ask_amount","ask_price","bid_price","bid_amount"]
[1750701793941,14.11427233,2292.2,2291.1,4.36468951]
[1750701794255,10.0,2292.0,2291.3,4.3642208]
[1750701794462,10.0,2292.0,2290.9,8.528]
[1750701794665,10.0,2292.0,2291.6,4.36375967]
[1750701794956,10.0,2292.0,2290.9,8.528]
[1750701795157,1.48933723,2292.1,2291.1,4.36471563]
[1750701795364,0.7791,2292.3,2291.2,0.43647156]
[1750701795565,14.11427233,2292.1,2291.3,4.36432936]
[1750701795724,10.7791,2292.3,2290.9,10.0]
[1750701795928,2.639,2292.2,2291.0,4.75242892]
[1750701796261,2.639,2292.2,2291.7,4.36338322]
[1750701796435,5.39223723,2292.2,2291.1,4.36454272]
[1750701796640,5.39223723,2292.2,2291.9,4.36316991]
[1750701796848,5.39223723,2292.2,2291.7,4.36346398]
[1750701796849,2.75323723,2292.2,2291.7,4.36346398]
[1750701797037,0.7791,2292.3,2292.1,4.36271777]
[1750701797364,0.7791,2292.3,2292.0,4.3628655]
[1750701797565,0.7791,2292.3,2291.6,8.506]
[1750701797766,0.7791,2292.3,2290.9,14.36499368]
[1750701797937,0.7791,2292.3,2291.8,4.36337356]
[1750701798268,0.7791,2292.3,2291.0,8.499]
[1750701798474,0.7791,2292.3,2291.2,4.36452513]
[1750701798767,1.81236762,2292.3,2291.3,0.38842847]
[1750701798968,1.81236762,2292.3,2291.1,4.3647137]
[1750701798969,0.7791,2292.3,2291.4,4.36414419]
[1750701799174,4.13862444,2293.7,2292.7,4.36166964]
[1750701799473,0.3403575,2293.9,2291.7,0.7632]
[1750701799474,0.7817,2293.5,2292.2,14.11427233]
[1750701799635,0.7817,2293.5,2293.2,4.36058921]
[1750701799835,0.7817,2293.5,2293.4,4.36033836]
[1750701800031,0.3403575,2293.9,2292.7,0.7632]
[1750701800230,2.639,2293.8,2292.4,0.77675168]
[1750701800468,10.0,2293.5,2292.4,0.38855234]
[1750701800671,10.0,2293.1,2291.9,4.36319211]
[1750701800891,14.11427233,2292.4,2291.2,0.7934]
[1750701801032,13.3988,2292.3,2291.1,9.28124536]
[1750701801398,1.03464815,2292.2,2291.2,0.38912182]
[1750701801535,14.11427233,2292.0,2291.2,4.75355327]
[1750701801737,1.03464815,2291.9,2291.3,4.75333973]
[1750701801935,1.03464815,2291.9,2291.3,0.38912182]
[1750701802182,2.639,2292.0,2291.2,0.38912182]
[1750701802183,3.67364815,2292.0,2291.2,0.38912182]
[1750701802370,11.03464815,2291.9,2291.1,4.36456686]
[1750701802565,2.40201297,2291.8,2291.2,4.36446049]
[1750701802769,2.40201297,2291.8,2291.3,4.36418302]
[1750701802770,1.03464815,2291.8,2291.3,4.36418302]
[1750701803089,11.44334482,2292.1,2291.4,4.36412789]
[1750701803269,1.03535986,2292.0,2291.2,4.36438489]
[1750701803585,1.03535986,2291.9,2291.0,8.498]
[1750701803754,1.03535986,2291.8,2291.2,4.36441607]
[1750701804341,1.24787047,2291.9,2290.3,15.19892474]
[1750701804342,14.94087233,2291.6,2290.5,4.36583247]
[1750701804536,1.03535986,2291.5,2291.3,4.36433425]
[1750701804762,3.4656,2291.6,2290.8,4.36528723]
[1750701805105,3.4656,2291.6,2290.7,4.3654778]
[1750701805306,1.03535986,2291.5,2291.4,4.36414419]
[1750701805602,0.8266,2291.6,2290.7,1.28524778]
[1750701805774,0.7656,2292.1,2290.7,11.67497672]
[1750701805944,1.03712278,2292.0,2290.8,11.50772894]
[1750701806143,0.7656,2292.1,2290.8,11.50772894]
[1750701806144,1.03712278,2291.9,2291.1,4.36456722]
[1750701806365,1.03712278,2291.8,2291.2,4.36451393]
[1750701806593,1.03712278,2291.7,2290.7,1.28524778]
[1750701806766,1.03712278,2291.6,2290.4,0.39058457]
[1750701806969,1.03712278,2291.5,2291.0,4.36488908]
[1750701807165,1.03712278,2291.4,2290.9,4.36499608]
[1750701807387,1.03712278,2291.3,2291.1,4.36455983]
[1750701807558,10.0,2291.7,2291.1,4.36455983]
[1750701807753,1.03757732,2291.6,2290.8,4.36528723]
[1750701807944,2.672,2292.0,2291.3,4.36419784]
[1750701808145,1.0374547,2291.9,2291.4,4.36413419]
[1750701808344,1.0374547,2291.8,2291.5,4.36387235]
[1750701808579,1.0374547,2291.7,2291.6,4.36375741]
[1750701808751,1.0374547,2291.7,2291.5,4.36385934]
[1750701808955,2.672,2292.0,2291.5,4.36391498]
[1750701809156,1.03750001,2291.9,2290.9,4.36509668]
[1750701809487,1.03750001,2291.8,2291.0,4.36480802]
[1750701809802,1.03750001,2291.7,2290.9,8.45]
[1750701810108,1.03750001,2291.6,2291.2,4.36439809]
[1750701810249,3.01576,2292.0,2291.3,4.36427998]
[1750701810463,10.0,2291.8,2290.3,0.8327]
[1750701810664,1.03827447,2291.7,2290.7,4.36545662]
[1750701810863,1.03827447,2291.6,2291.3,4.36418251]
[1750701811115,0.34376,2292.0,2291.6,4.3637314]
[1750701811275,0.7656,2292.1,2291.2,12.80848708]
[1750701811276,1.03847227,2291.9,2291.2,12.80848708]
[1750701811629,0.7656,2292.1,2291.6,4.36366802]
[1750701811630,1.03847227,2291.8,2291.6,4.36366802]
[1750701811912,0.7656,2292.1,2291.3,4.36433465]
[1750701812113,1.03851608,2292.0,2290.3,15.1988514]
[1750701812262,1.03851608,2291.9,2290.4,10.0]
[1750701812457,1.03851608,2291.8,2291.5,4.36386156]
[1750701812663,10.7656,2292.1,2291.4,4.36407355]
[1750701812863,10.7656,2292.1,2291.6,4.36363801]
[1750701812864,1.03847873,2292.0,2291.6,4.36363801]
[1750701813098,0.7656,2292.1,2291.6,4.36363801]
[1750701813099,1.03847873,2291.9,2291.7,4.36348593]
[1750701813275,1.03844945,2292.0,2291.6,4.36371759]
[1750701813486,1.03851301,2291.9,2290.8,4.36523643]
[1750701813678,0.7656,2292.1,2291.0,4.36490615]
[1750701813965,1.03852482,2292.0,2291.7,4.36347088]
[1750701814164,1.03852482,2291.9,2291.7,4.36347088]
[1750701814396,1.03845066,2292.0,2291.7,4.36347088]
[1750701814708,1.03853232,2291.9,2291.6,4.36357778]
[1750701814910,0.7656,2292.1,2291.7,4.3634115]
[1750701815209,0.7656,2292.1,2291.8,4.36327859]
[1750701815417,1.03917302,2292.0,2291.9,4.36319211]
[1750701815626,0.22815485,2292.5,2292.2,4.36243254]
[1750701815921,14.11427233,2292.5,2291.7,4.36349678]
[1750701816060,0.8027,2292.6,2291.6,8.407]
[1750701816262,0.8026,2293.0,2292.5,4.36205016]
[1750701816757,0.8026,2293.0,2291.7,4.36357289]
[1750701816758,10.0,2292.9,2291.1,0.8293]
[1750701816961,14.11427233,2292.2,2291.4,4.36397155]
[1750701817162,14.11427233,2292.2,2291.5,4.36388517]
[1750701817387,14.11427233,2292.2,2291.6,4.36367368]
[1750701817604,0.7813,2292.5,2292.0,4.3628328]
[1750701817813,0.7813,2292.5,2291.8,12.77437151]
[1750701818108,0.7813,2292.5,2291.1,0.8293]
[1750701818267,0.7813,2292.5,2291.9,4.36307779]
[1750701818468,0.7813,2292.5,2292.0,4.36290355]
[1750701818700,0.7813,2292.5,2291.7,4.36347186]
[1750701818880,0.7813,2292.5,2291.4,4.36414419]
[1750701819081,0.7813,2292.5,2291.7,4.36349323]
[1750701819425,0.7813,2292.5,2292.0,4.36298053]
[1750701819696,0.7813,2292.5,2291.7,8.413]
[1750701820232,0.8177,2293.0,2291.9,4.36319211]
[1750701820507,0.8177,2293.0,2292.2,4.36262106]
[1750701820688,0.8177,2293.0,2292.3,4.7986431]
[1750701820857,0.8325,2293.6,2292.4,8.408]
[1750701821062,0.8325,2293.6,2293.1,4.36072478]
[1750701821291,0.8325,2293.6,2292.7,0.23487351]
[1750701821507,0.8325,2293.6,2293.3,4.36042843]
[1750701821828,0.8325,2293.6,2293.5,4.36014824]
[1750701822203,0.8325,2293.6,2293.1,8.415]
[1750701822372,0.8325,2293.6,2293.2,12.77271302]
[1750701822700,0.8325,2293.6,2293.4,4.36022951]
[1750701822887,0.8325,2293.6,2293.3,4.36044233]
[1750701823408,0.8325,2293.6,2292.8,8.409]
[1750701823706,0.3403575,2293.9,2293.8,4.35957799]
[1750701824008,0.3403575,2293.9,2293.2,4.36070322]
[1750701824009,0.3403575,2293.9,2293.5,8.397]
[1750701824213,0.3403575,2293.9,2293.8,4.35957799]
[1750701824593,0.25668254,2295.1,2293.9,5.11028794]
[1750701824909,0.8174,2294.9,2294.0,8.392]
[1750701825215,14.11427233,2294.6,2293.5,5.11096184]
[1750701825368,14.11427233,2293.9,2293.0,4.36109899]
[1750701825574,14.11427233,2294.0,2292.9,9.2037]
[1750701825981,2.671,2294.2,2292.8,4.36133231]
[1750701825982,0.7852,2293.5,2292.8,4.36133231]
[1750701826277,14.11427233,2293.2,2292.1,0.7717]
[1750701826477,14.11427233,2292.8,2292.0,0.7717]
[1750701826791,0.7546,2292.7,2291.8,4.36331575]
[1750701827098,0.7546,2292.7,2291.7,8.439]
[1750701827298,0.7546,2293.2,2291.8,2.90517065]
[1750701827499,0.7546,2293.2,2291.9,4.36319211]
[1750701827698,0.7546,2293.2,2292.0,0.45973628]
[1750701828015,0.7546,2293.2,2292.3,4.36227045]
[1750701828016,14.11427233,2292.9,2292.3,4.36227045]
[1750701828204,14.11427233,2292.9,2292.3,4.36240437]
[1750701828407,14.11427233,2292.9,2292.0,4.82266691]
[1750701828725,14.11427233,2292.5,2291.4,4.36397524]
[1750701828878,10.0,2292.4,2291.5,4.36380994]
[1750701829084,2.671,2292.3,2291.5,4.36380994]
[1750701829727,2.671,2292.3,2291.3,4.36420668]
[1750701829893,14.11427233,2292.1,2291.2,8.471]
[1750701830228,2.671,2292.3,2291.2,13.68249337]
[1750701830377,2.671,2292.3,2291.4,4.36404511]
[1750701830573,14.11427233,2292.5,2291.2,9.3181]
[1750701830818,10.0,2292.3,2291.5,4.36384675]
[1750701830978,10.0,2292.3,2291.2,9.3181]
[1750701830979,0.7578,2292.3,2291.2,9.3181]
[1750701831179,0.7578,2292.3,2291.9,4.36316659]
[1750701831378,3.4288,2292.6,2291.9,4.3631623]
[1750701831620,0.7578,2292.6,2291.6,4.3637633]
[1750701831790,0.22812552,2293.0,2291.8,4.36338249]
[1750701832115,0.7578,2293.1,2292.0,4.36297417]
[1750701832316,0.7578,2293.1,2292.7,4.3616493]
[1750701832614,0.7578,2293.1,2292.6,4.36172463]
[1750701832791,0.7578,2293.1,2292.4,4.36215979]
[1750701832993,0.7578,2293.1,2292.3,4.36242274]
[1750701833194,0.7578,2293.1,2292.4,4.36224044]
[1750701833381,0.7578,2293.1,2292.3,1.28214227]
[1750701833913,0.7578,2293.1,2292.2,12.82153538]
[1750701834114,0.7578,2293.1,2292.0,8.452]
[1750701834527,14.87207233,2293.1,2292.0,8.45]
[1750701834693,2.671,2293.0,2292.2,4.36245858]
[1750701835042,2.671,2293.0,2292.0,12.81292533]
[1750701835320,2.671,2293.0,2291.8,8.442]
[1750701835321,0.829,2292.6,2291.8,8.442]
[1750701835521,14.11427233,2292.3,2291.5,4.36394632]
[1750701835724,2.671,2292.2,2291.2,5.15843498]
[1750701835927,2.671,2292.2,2291.1,8.438]
[1750701836229,14.11427233,2291.9,2290.6,8.439]
[1750701836529,2.671,2291.8,2290.7,10.0]
[1750701836728,2.671,2291.8,2291.4,4.36399867]
[1750701836926,2.671,2291.8,2291.3,4.36422822]
[1750701837227,0.829,2292.1,2291.4,4.36412482]
[1750701837525,3.5,2292.1,2291.6,4.36372724]
[1750701837827,0.829,2292.1,2291.4,0.8728353]
[1750701838032,0.829,2292.1,2291.5,4.36395374]
[1750701838325,0.829,2292.1,2291.8,4.36327819]
[1750701838511,0.829,2292.1,2291.7,4.36347714]
[1750701838687,0.829,2292.1,2291.5,4.36389099]
[1750701838888,2.648,2292.0,2290.6,5.1686795]
[1750701839084,1.75912723,2291.9,2291.0,4.36480089]
[1750701839355,1.75912723,2291.9,2291.2,4.36446686]
[1750701839489,2.648,2291.8,2291.2,4.36437101]
[1750701839821,2.648,2291.8,2290.8,8.432]
[1750701840142,0.8322,2290.9,2290.0,4.36667272]
[1750701840286,2.648,2290.8,2290.0,0.89052903]
[1750701840493,0.8322,2290.9,2290.4,4.36590861]
[1750701840803,2.648,2290.8,2289.9,0.17166834]
[1750701841003,0.8322,2290.9,2290.8,4.36528723]
[1750701841205,24.59527233,2291.7,2289.9,0.17166834]
[1750701841206,0.8203,2291.3,2290.2,0.7814]
[1750701841389,0.8203,2291.3,2290.4,4.36604959]
[1750701841594,10.481,2291.7,2290.6,4.36566838]
[1750701841595,0.7703,2291.7,2290.6,4.36566838]
[1750701841790,15.86857956,2292.9,2291.2,0.7675]
[1750701842091,0.7703,2292.9,2292.8,4.36147941]
[1750701842304,0.7703,2292.9,2292.4,4.36215418]
[1750701842533,0.7703,2292.9,2292.3,8.476]
[1750701842705,14.88457233,2292.9,2291.8,4.36328603]
[1750701842904,0.7745,2292.4,2291.4,12.85304196]
[1750701843119,4.13687723,2292.3,2291.4,8.489]
[1750701843434,0.811,2292.0,2290.8,12.85810247]
[1750701843735,0.811,2292.0,2290.7,4.3654778]
[1750701843736,10.811,2292.0,2290.7,4.3654778]
[1750701843893,10.811,2292.0,2291.1,4.36454589]
[1750701844090,10.811,2292.0,2291.2,4.3645101]
[1750701844333,0.811,2292.0,2291.7,4.36342817]
[1750701844634,0.811,2292.0,2290.8,4.36528723]
[1750701844635,0.811,2292.0,2291.9,4.36319211]
[1750701844836,0.811,2292.0,2291.5,4.36379468]
[1750701845019,0.811,2292.0,2291.6,4.36364692]
[1750701845220,0.811,2292.0,2291.3,8.489]
[1750701845540,0.811,2292.0,2291.5,4.36390943]
[1750701845697,0.811,2292.0,2291.6,4.36372886]
[1750701845898,0.811,2292.0,2291.4,4.3640658]
[1750701845899,14.92527233,2292.0,2290.4,0.7603]
[1750701846098,14.92527233,2292.0,2291.2,4.36451659]
[1750701846324,14.92527233,2292.0,2290.9,8.49]
[1750701846528,14.92527233,2292.0,2290.8,4.36528723]
[1750701846833,14.92527233,2292.0,2291.4,4.36405572]
[1750701847038,0.811,2292.0,2290.8,4.36528723]
[1750701847263,0.8214,2292.5,2291.2,4.36445518]
[1750701847548,14.11427233,2292.4,2291.5,4.36381126]
[1750701847756,14.11427233,2292.4,2290.9,12.41292872]
[1750701847902,0.8214,2292.3,2291.5,4.36382875]
[1750701848102,2.649,2292.2,2290.9,3.93392872]
[1750701848335,14.11427233,2292.0,2290.9,11.121]
[1750701848552,14.11427233,2292.0,2291.4,4.36413007]
[1750701848852,0.8214,2292.3,2290.9,11.121]
[1750701849005,0.8214,2292.3,2291.8,4.36323492]
[1750701849205,0.8214,2292.3,2290.9,11.121]
[1750701849541,14.11427233,2292.2,2291.4,4.3640653]
[1750701849716,14.11427233,2292.2,2291.3,4.36427726]
[1750701850050,14.11427233,2292.2,2291.0,5.47694233]
[1750701850208,14.11427233,2291.8,2290.7,8.458]
[1750701850407,0.7779,2291.7,2290.2,0.82]
[1750701850639,0.7779,2291.7,2290.6,4.36556356]
[1750701850953,0.7779,2291.7,2290.9,4.36495917]
[1750701851248,0.7779,2291.7,2291.3,4.36420397]
[1750701851407,0.7779,2291.7,2291.0,4.36483189]
[1750701851603,0.7779,2291.7,2291.4,4.36411423]
[1750701851803,0.7779,2291.7,2291.6,4.3637633]
[1750701852021,0.8008,2292.3,2291.2,4.36452513]
[1750701852226,0.8008,2292.3,2292.2,4.36262106]
[1750701852459,0.7879,2292.9,2292.3,4.36243074]
[1750701852631,0.7879,2292.9,2292.2,0.87254023]
[1750701852835,0.7879,2292.9,2292.3,4.36243074]
[1750701853048,0.7879,2293.3,2292.2,0.87254023]
[1750701853363,0.7879,2293.3,2293.1,4.36085408]
[1750701853560,0.7879,2293.3,2293.0,4.36100514]
[1750701853723,0.7879,2293.3,2292.2,0.87254023]
[1750701854058,14.11427233,2293.2,2292.4,4.36213206]
[1750701854468,16.76227233,2293.2,2292.3,8.46]
[1750701854830,16.76227233,2293.2,2292.1,8.457]
[1750701855031,16.76227233,2293.2,2292.4,4.36224044]
[1750701855365,16.76227233,2293.2,2292.5,4.36204718]
[1750701855580,18.51728956,2293.2,2291.8,4.36319321]
[1750701855726,18.51728956,2293.2,2292.2,4.36245699]
[1750701855727,0.7879,2293.1,2292.2,4.36245699]
[1750701856069,0.7879,2293.1,2292.1,4.36272154]
[1750701856282,0.7879,2293.1,2291.8,4.36338249]
[1750701856584,3.01773997,2293.1,2292.0,4.36282508]
[1750701856730,3.01773997,2293.1,2292.0,4.36300174]
[1750701857063,14.11427233,2292.8,2291.5,4.36393898]
[1750701857260,2.648,2292.7,2292.0,4.36284957]
[1750701857560,2.648,2292.7,2292.0,4.36284476]
[1750701857725,2.648,2292.7,2291.8,8.44]
[1750701857926,2.648,2292.7,2292.0,4.36291539]
[1750701858141,2.648,2292.7,2292.2,4.36251297]
[1750701858562,2.648,2292.7,2291.8,13.64735661]
[1750701858563,0.8154,2292.6,2291.8,0.844]
[1750701858732,0.8154,2292.6,2291.9,4.36318451]
[1750701858928,0.8154,2293.0,2292.7,4.36152477]
[1750701859130,0.8154,2293.0,2292.9,4.36128919]
[1750701859350,24.73275403,2293.9,2293.0,4.36091591]
[1750701859351,0.8154,2293.2,2293.0,4.36091591]
[1750701859531,0.8154,2293.2,2293.1,4.36090881]
[1750701859727,0.8154,2293.2,2292.4,8.435]
[1750701859931,0.8154,2293.2,2291.9,0.7682]
[1750701860132,0.7761,2293.0,2292.0,8.429]
[1750701860450,0.7761,2293.0,2292.3,4.36235062]
[1750701860451,3.4241,2293.0,2292.3,4.36235062]
[1750701860669,0.7761,2293.0,2292.0,8.429]
[1750701861264,0.7761,2293.0,2292.5,4.36190806]
[1750701861470,0.7761,2293.0,2292.1,8.44]
[1750701861833,0.7761,2293.0,2292.8,4.36144184]
[1750701862043,0.7761,2293.0,2292.8,4.36140076]
[1750701862258,0.7761,2293.0,2292.9,4.36128919]
[1750701862464,0.7628,2293.5,2292.7,4.36150684]
[1750701862666,0.7628,2293.5,2292.5,4.36188343]
[1750701862864,0.7628,2293.5,2292.9,4.36118522]
[1750701863195,0.7628,2293.5,2292.8,4.36138504]
[1750701863480,0.7628,2293.5,2292.6,4.36170006]
[1750701863644,0.7628,2293.5,2292.8,4.36146883]
[1750701863982,0.7628,2293.5,2292.7,4.3615907]
[1750701864141,0.7605,2293.2,2291.8,0.8009]
[1750701864340,0.7605,2293.2,2292.4,4.3622274]
[1750701864578,0.7605,2293.2,2291.8,0.8009]
[1750701864782,0.7605,2293.2,2292.4,4.36223459]
[1750701864980,0.7605,2293.2,2291.8,0.8009]
[1750701865286,0.7961,2292.8,2291.9,4.36307609]
[1750701865597,2.648,2292.7,2291.8,8.414]
[1750701866097,0.7622,2292.4,2291.0,13.8962]
[1750701866247,0.7622,2292.4,2291.3,8.408]
[1750701866443,0.7622,2292.0,2290.7,0.7642]
[1750701866689,14.11427233,2291.7,2290.7,12.77032639]
[1750701867006,0.7622,2291.6,2290.5,4.36585898]
[1750701867188,0.7622,2291.6,2290.9,4.36496227]
[1750701867388,0.7622,2291.6,2290.4,8.407]
[1750701867389,0.7622,2291.6,2290.8,4.36512735]
[1750701867704,0.7622,2291.6,2291.1,4.36455793]
[1750701867883,1.48764723,2291.9,2290.6,4.7569142]
[1750701868083,4.19019196,2291.8,2290.7,0.91227732]
[1750701868397,4.19019196,2291.8,2291.1,4.36459819]
[1750701868398,1.56019196,2291.8,2291.1,4.36459819]
[1750701868605,2.63,2291.7,2290.7,8.399]
[1750701868944,2.63,2291.7,2290.7,4.36537312]
[1750701868945,14.11427233,2291.6,2290.7,4.36537312]
[1750701869227,14.11427233,2291.6,2291.0,4.36489086]
[1750701869385,1.56019196,2291.8,2291.0,4.36479933]
[1750701869587,2.63,2291.7,2291.1,4.36465343]
[1750701869983,10.0,2291.9,2291.1,0.8729551]
[1750701870185,10.0,2291.9,2290.8,4.36528723]
[1750701870529,10.0,2291.9,2291.2,4.36442087]
[1750701870735,14.11427233,2291.8,2290.6,4.3655679]
[1750701870936,10.0,2291.9,2291.1,4.3646337]
[1750701871135,0.327,2292.1,2290.8,12.76821153]
[1750701871334,0.327,2292.1,2290.9,9.70482115]
[1750701871535,0.327,2292.1,2291.4,4.36398474]
[1750701871745,0.327,2292.1,2291.0,4.36490615]
[1750701872047,0.327,2292.1,2291.9,4.36306477]
[1750701872255,0.327,2292.1,2292.0,4.36300174]
[1750701872421,0.327,2292.1,2291.9,4.36303203]
[1750701872744,0.327,2292.1,2291.8,4.36322181]
[1750701872914,0.327,2292.1,2291.9,4.36317044]
[1750701873113,0.327,2292.1,2291.6,4.36372372]
[1750701873323,0.327,2292.1,2291.8,4.36329347]
[1750701873527,0.327,2292.1,2291.9,4.36311217]
[1750701873729,0.327,2292.1,2291.7,4.36357289]
[1750701874042,0.327,2292.1,2291.8,4.36328358]
[1750701874232,0.327,2292.1,2291.7,8.416]
[1750701874404,0.327,2292.1,2291.8,4.36335778]
[1750701874608,0.327,2292.1,2291.7,12.77955917]
[1750701874609,0.327,2292.1,2291.7,8.416]
[1750701874917,2.957,2292.1,2290.9,1.27682115]
[1750701875130,0.327,2291.7,2290.7,8.413]
[1750701875337,0.327,2291.7,2290.7,12.77837136]
[1750701875510,0.327,2291.7,2290.8,4.36523669]
[1750701875705,0.327,2291.7,2290.7,8.413]
[1750701875706,10.327,2291.7,2290.7,8.413]
[1750701876045,0.327,2291.3,2290.4,12.7759715]
[1750701876244,2.957,2291.3,2290.5,1.27759715]
[1750701876545,10.327,2290.5,2289.9,0.17166834]
[1750701876746,12.957,2290.5,2289.9,0.17166834]
[1750701878028,0.327,2290.4,2289.9,0.17166834]
[1750701878248,14.11427233,2290.2,2289.9,0.17166834]
[1750701878413,0.327,2290.1,2289.9,0.17166834]
[1750701881048,0.327,2291.0,2290.2,4.36643087]
[1750701881253,0.327,2291.0,2290.1,4.36662154]
[1750701881414,0.327,2291.0,2290.2,4.36637097]
[1750701881614,0.327,2291.0,2290.4,4.36604753]
[1750701881924,10.327,2291.0,2290.4,4.36597172]
[1750701882113,0.327,2291.0,2290.3,8.399]
[1750701882434,10.483,2291.7,2290.5,0.7931]
[1750701882435,0.327,2291.5,2290.5,0.7931]
[1750701882633,0.327,2291.5,2290.3,4.36622253]
[1750701882634,0.327,2291.5,2290.7,4.36540184]
[1750701883155,0.327,2291.5,2290.1,0.7931]
[1750701883314,0.327,2291.5,2290.6,4.36558038]
[1750701883511,14.11427233,2291.2,2290.2,8.395]
[1750701883822,14.11427233,2291.2,2289.9,4.53859647]
[1750701883823,14.11427233,2290.8,2289.9,0.17166834]
[1750701884033,0.327,2290.7,2289.9,0.17166834]
[1750701884233,14.11427233,2290.4,2289.9,0.17166834]
[1750701884483,2.958,2290.5,2289.9,0.17166834]
[1750701884771,2.03422723,2290.5,2289.9,0.17166834]
[1750701884950,2.958,2290.5,2289.9,0.17166834]
[1750701885836,0.327,2290.3,2289.9,0.17166834]
[1750701886036,10.327,2290.3,2289.9,0.17166834]
[1750701886848,14.44127233,2290.0,2289.9,0.17166834]
[1750701887065,24.44127233,2290.0,2289.9,0.17166834]
[1750701887211,26.88539956,2290.0,2289.9,0.17166834]
[1750701887551,26.88539956,2290.0,2288.5,8.383]
[1750701887552,10.0,2289.9,2288.5,8.383]
[1750701887735,14.11427233,2289.5,2288.6,4.36943568]
[1750701887942,14.11427233,2289.5,2288.6,4.36946326]
[1750701888115,14.11427233,2289.5,2288.5,8.383]
[1750701888314,0.1553,2289.4,2288.5,0.91358]
[1750701888548,0.1553,2289.4,2288.4,8.375]
[1750701888848,0.1553,2289.0,2288.0,10.488]
[1750701889051,10.0,2288.8,2287.5,2.632]
[1750701889266,10.0,2288.2,2287.0,0.7528]
[1750701889442,10.0,2288.0,2287.1,4.37223496]
[1750701889663,14.11427233,2287.9,2286.9,4.37273164]
[1750701889825,14.11427233,2287.9,2286.8,11.011]
[1750701890025,14.11427233,2287.9,2287.0,4.37243348]
[1750701890226,14.11427233,2287.9,2287.1,4.3721955]
[1750701890440,14.11427233,2287.9,2287.2,4.37212905]
[1750701890635,17.03230256,2287.9,2287.2,4.37211164]
[1750701890840,17.03230256,2287.9,2287.3,4.37194224]
[1750701891124,17.03230256,2287.9,2286.8,11.014]
[1750701891435,0.1553,2288.4,2287.5,4.37158469]
[1750701891640,0.1553,2288.4,2288.2,4.37023637]
[1750701891843,14.11427233,2289.0,2287.6,11.005]
[1750701891844,0.1553,2289.0,2288.7,4.36919624]
[1750701892095,0.1553,2289.0,2288.9,4.36891083]
[1750701892413,0.1553,2289.4,2288.4,8.378]
[1750701892598,0.1553,2289.4,2288.7,4.36920281]
[1750701892799,0.1553,2289.4,2288.6,8.377]
[1750701892978,10.1553,2289.4,2288.5,0.91502]
[1750701893177,0.1553,2289.4,2288.6,4.36933994]
[1750701893391,0.1553,2289.4,2288.7,4.36919324]
[1750701893587,0.1553,2289.4,2288.8,4.36908902]
[1750701893786,0.1553,2289.4,2288.3,0.7722]
[1750701894137,10.0,2289.3,2288.2,8.373]
[1750701894282,2.42695723,2289.2,2288.2,12.74323819]
[1750701894481,2.42695723,2289.2,2288.2,8.373]
[1750701894806,10.0,2289.3,2288.2,8.373]
[1750701895010,10.0,2289.3,2288.5,4.36951491]
[1750701895377,10.0,2289.3,2288.4,4.36981825]
[1750701895619,10.0,2289.3,2288.3,4.37005423]
[1750701895830,10.0,2289.3,2288.4,4.36985512]
[1750701896126,10.0,2289.3,2288.4,1.27428551]
[1750701896709,0.1553,2289.4,2288.5,4.36957119]
[1750701896916,0.1553,2289.4,2288.8,4.3690693]
[1750701897077,0.1553,2289.4,2288.9,4.36887818]
[1750701897281,0.1553,2289.4,2288.5,2.633]
[1750701897524,0.1553,2289.4,2288.9,4.36881938]
[1750701897724,0.1553,2289.4,2289.0,4.36868143]
[1750701898027,0.1553,2289.4,2289.1,4.36852285]
[1750701898178,0.1553,2289.4,2288.9,4.36881821]
[1750701898377,0.1553,2289.4,2288.8,8.344]
[1750701898578,0.1553,2289.4,2288.9,4.36889331]
[1750701898813,0.1553,2289.4,2288.8,9.29750286]
[1750701898814,0.1553,2289.8,2289.2,4.36823924]
[1750701898986,0.1553,2289.8,2289.2,4.36823006]
[1750701899191,0.1553,2289.8,2289.3,4.36809377]
[1750701899402,0.1553,2289.8,2289.4,4.36792704]
[1750701899601,0.1553,2290.2,2289.5,0.4367927]
[1750701899816,0.1553,2290.2,2289.4,4.36779133]
[1750701900020,10.1553,2290.2,2289.3,4.36812327]
[1750701900200,0.1553,2290.2,2289.2,4.36833828]
[1750701900719,14.11427233,2291.0,2289.3,0.7978]
[1750701900720,0.1553,2290.7,2289.3,0.7978]
[1750701900921,0.1553,2290.7,2290.2,4.3662725]
[1750701901124,0.1553,2291.0,2290.2,0.43662725]
[1750701901326,0.22828023,2292.0,2290.9,0.8308]
[1750701901477,0.22828023,2292.0,2291.9,4.36319211]
[1750701901678,0.1553,2293.1,2291.9,10.924]
[1750701901883,0.1553,2293.1,2292.4,4.36208371]
[1750701902188,0.1553,2293.1,2291.9,10.924]
[1750701902189,0.1553,2293.1,2292.6,4.36178484]
[1750701902396,0.1553,2293.5,2292.6,10.922]
[1750701902584,0.1553,2293.5,2292.8,4.36138064]
[1750701902780,0.1553,2293.5,2292.7,4.36166964]
[1750701903017,0.1553,2293.5,2293.0,4.36106792]
[1750701903181,0.1965987,2294.1,2292.8,21.06061735]
[1750701903382,0.1965987,2294.1,2292.9,20.54146174]
[1750701903577,0.1965987,2294.1,2292.9,12.18846174]
[1750701903807,0.1965987,2294.1,2294.0,4.3591979]
[1750701904021,0.25668254,2295.1,2294.1,0.7894]
[1750701904188,0.25668254,2295.1,2295.0,4.35729847]
[1750701904382,0.22786049,2296.6,2296.3,0.7894]
[1750701904587,0.22786049,2296.6,2296.5,4.35445242]
[1750701904794,0.6084,2298.4,2296.7,10.0]
[1750701905023,0.2274966,2298.6,2297.2,14.11427233]
[1750701905183,0.2274966,2298.6,2298.2,4.35108218]
[1750701905386,0.2274966,2298.6,2297.3,10.8034]
[1750701905387,0.2274966,2298.6,2297.3,0.8034]
[1750701905691,0.2274966,2298.6,2297.4,2.68]
[1750701905891,0.2274966,2298.6,2297.5,8.86834]
[1750701906094,0.2274966,2298.6,2297.6,14.11427233]
[1750701906324,0.2274966,2298.6,2297.3,0.8034]
[1750701906523,14.11427233,2298.5,2297.1,8.558]
[1750701906828,14.11427233,2298.5,2296.6,0.803]